Cogmind - Beta 14 @@@ ROGUE MODE // 2024.10.10 @ 17:47:50 Player: N.W.L Result: Destroyed by S-27 Virus with Autogun Performance ------------- Evolutions (6) 3000 Regions Visited (14) 2800 Robots Destroyed (163) 815 Value Destroyed (7241) 7241 Prototype IDs (48) 960 Alien Tech Used (0) 0 Bonus (6709) 6709 TOTAL SCORE: 21525 Bonus ------- Triggered High Security 500 High Alert Combat Kills 1677 Follower Combat Kills 3193 Registered with UFD 300 Met Warlord at Base 500 MAIN.C Attacked Warlord 500 Warlord Defense Kills 1842 Friendly Fire -1803 Cogmind --------- Core Integrity 0/1150 Matter 290/300 Energy 84/100 System Corruption 18% Temperature Cool (0) Movement Core (300) Ox5 Location -4/Factory Parts ------- > --- POWER (2) -------- (None) > --- PROPULSION (6) --- (None) > --- UTILITY (9) ------ Machine Analyzer Spectral Analyzer > --- WEAPON (2) ------- Vortex Driver > --- INVENTORY (5) ---- Compact HERF Cannon Long-range Phase Cannon Vortex Driver (30) Companion Sword Peak State ------------ > --- POWER ------------ Particle Reactor Quantum Reactor > --- PROPULSION ------- Myomer Leg Myomer Leg Myomer Leg Enhanced Biometal Leg Enhanced Biometal Leg Enhanced Biometal Leg > --- UTILITY ---------- High-capacity Storage Unit Spectral Analyzer Advanced Sensor Array Advanced Melee Analysis Suite Nanoactuators Advanced Force Booster Advanced Transmission Jammer Advanced Reaction Control System Improved Medium Armor Plating > --- WEAPON ----------- Long-range Phase Cannon Companion Sword > --- INVENTORY -------- Myomer Leg Myomer Leg Myomer Leg Improved Cooling System Improved Energy Well Launcher Loader Advanced Reaction Control System Improved Phase Shifter Layered Medium Armor Plating Layered Medium Armor Plating Advanced Thermal Shield Advanced Shield Generator Dimensional Node Initializer Compact HERF Cannon Cooled Plasma Cannon Vortex Driver Vortex Driver Hellfire Missile Launcher Thunder Hammer [Rating: 147] Favorites ----------- Power Ion Engine Engine Ion Engine Power Core Light Nuclear Core Reactor Vortex Chain Reactor Propulsion Subdweller Monowheel Treads Light Treads Leg Armored Leg Wheel Subdweller Monowheel Hover Unit Combat Airjet Flight Unit Flightbrick Utility High-capacity Storage Unit Device Improved Terrain Scanner Storage High-capacity Storage Unit Processor Spectral Analyzer Hackware Advanced Hacking Suite Protection Scrap Shield Weapon Battle Cannon Energy Gun Gatling Laser Energy Cannon Plasma Cannon Ballistic Gun Subdweller Machine Gun Ballistic Cannon Battle Cannon Launcher Proton Missile Launcher Special Weapon Remote Datajack Impact Weapon Thunder Hammer Slashing Weapon Companion Sword Special Melee Weapon Datajack Build | -11 -10 -10 -7 -7 -5 -5 -5 -5 -5 -5 -4 -4 -4 -4 ------- Run | Yrd Mat Sub Rec Scr Fac Was Fac Upp Upp War Pro Fac Was Fac Slots Evolved 12 | . . . . . 10 . . . . . . 2 . . Power 1 | . . . . . 1 . . . . . . . . . Propulsion 4 | . . . . . 4 . . . . . . . . . Utility 7 | . . . . . 5 . . . . . . 2 . . Weapon . | . . . . . . . . . . . . . . . Parts Attached 255 | . 10 24 21 22 41 1 9 10 4 20 12 29 12 40 Power 25 | . 1 1 1 3 7 . 1 2 . 1 . 2 3 3 Engine 9 | . 1 1 1 2 4 . . . . . . . . . Core 5 | . . . . 1 2 . . 2 . . . . . . Reactor 11 | . . . . . 1 . 1 . . 1 . 2 3 3 Propulsion 44 | . 2 4 2 4 5 . 1 5 1 3 2 3 3 9 Treads 8 | . 2 2 2 2 . . . . . . . . . . Leg 25 | . . . . . . . . 4 1 3 2 3 3 9 Wheel 2 | . . 2 . . . . . . . . . . . . Hover 2 | . . . . . 2 . . . . . . . . . Flight 7 | . . . . 2 3 . 1 1 . . . . . . Utility 98 | . 1 7 6 7 20 1 6 2 3 2 4 19 2 18 Device 50 | . . 3 3 1 11 . 5 . 3 . 3 10 2 9 Storage 10 | . 1 1 . 2 1 1 1 1 . . . 2 . . Processor 12 | . . . . 1 5 . . . . 1 1 2 . 2 Hackware 2 | . . . . . . . . . . . . 1 . 1 Protection 24 | . . 3 3 3 3 . . 1 . 1 . 4 . 6 Artifact . | . . . . . . . . . . . . . . . Weapon 88 | . 6 12 12 8 9 . 1 1 . 14 6 5 4 10 Energy Gun 15 | . 6 2 3 1 1 . . . . 1 . 1 . . Energy Cannon 27 | . . 3 3 . 3 . . . . 7 2 4 2 3 Ballistic Gun 8 | . . 3 1 2 1 . . . . . 1 . . . Ballistic Cannon 5 | . . 4 1 . . . . . . . . . . . Launcher 7 | . . . 1 . . . . . . 1 1 . 1 3 Special Weapon 8 | . . . 3 3 2 . . . . . . . . . Impact Weapon 1 | . . . . . . . . . . . . . . 1 Slashing Weapon 14 | . . . . 2 2 . 1 . . 3 2 . 1 3 Piercing Weapon . | . . . . . . . . . . . . . . . Special Melee Weapon 3 | . . . . . . . . 1 . 2 . . . . Unidentified Prototypes 20 | . . . . 1 5 1 2 1 . 4 1 3 1 1 Corrupted Parts 2 | . . . . . . . . . . . 2 . . . System Corruption 13 | . . . . . . . . . . . 13 . . . Parts Lost 38 | . . 5 2 . 9 . 1 . 3 . 1 5 . 12 Power 6 | . . . . . 3 . 1 . 1 . . . . 1 Propulsion 9 | . . 2 1 . . . . . . . . . . 6 Utility 17 | . . 1 . . 4 . . . 2 . 1 5 . 4 Weapon 6 | . . 2 1 . 2 . . . . . . . . 1 Highest Loss Streak 4 | . . 1 1 . 2 . 1 . 3 . 1 4 . 4 To Critical Strikes 1 | . . . . . 1 . . . . . . . . . Average Slot Usage (%) 91 | . 86 93 98 89 64 73 72 76 85 93 87 89 99 91 Engine 10 | . 14 14 14 10 4 . . . . 2 . . . . Treads 7 | . 25 5 17 23 . . . . . . . . . . Leg 5 | . 2 . . . . . . 12 26 33 35 31 31 28 Wheel 12 | . . 21 9 . . . . . . . . . . . Device 12 | . . 10 10 8 13 15 19 18 20 26 16 20 26 23 Storage 9 | . 14 9 14 11 2 10 7 4 5 5 5 5 5 4 Processor 1 | . . . . . 12 15 13 7 5 5 5 7 10 10 Protection 4 | . . 3 3 5 8 5 5 5 2 . 5 7 5 4 Energy Gun 2 | . 28 . 7 6 . . . . . . . . . 2 Energy Cannon 1 | . . . 4 6 . . . . . 2 1 3 6 . Ballistic Gun 7 | . . 12 . 1 . . . . . . . . . . Ballistic Cannon 8 | . . 13 4 . . . . . . . . . . . Slashing Weapon 1 | . . . . 4 5 10 10 9 5 3 4 5 . 4 Peak Build Rating 147 | 6 7 18 30 30 105 106 112 110 82 116 120 138 144 147 Average Rating 37 | 6 6 13 25 26 94 104 105 91 69 86 114 128 139 127 On Entrance 69 | 6 6 7 18 28 30 103 105 102 82 61 116 117 135 132 Naked Turns 6 | . . . . 6 . . . . . . . . . . Heaviest Build 123 | 11 51 53 64 62 78 34 31 41 40 80 80 119 123 120 Greatest Support 165 | 20 40 40 48 48 37 37 40 63 78 133 138 147 147 165 Greatest Overweight (x) 17 | . 1 17 16 2 9 . 1 1 . . . . . . Average Overweight (x) 2 | . . 6 2 . . . . . . . . . . . Largest Inventory Capacity 20 | 8 20 20 20 20 20 8 8 8 8 8 8 20 20 20 Average Capacity 15 | 8 18 15 20 17 7 8 8 7 8 8 8 19 20 18 Most Carried 20 | 6 13 13 20 20 20 8 8 8 8 8 8 20 20 20 Average Carried 9 | 6 9 6 19 17 6 7 7 7 7 7 7 16 19 17 Final Capacity 20 | 8 20 20 20 20 8 8 8 8 8 8 8 20 20 5 Final Carried 20 | 6 13 13 20 20 8 7 8 8 8 8 8 19 20 4 Class Distribution -------------------- 56% | Mutant 22% | Commander-Mutant 8% | Scavenger-Mutant 6% | Subdweller-Mutant Dominant Class ---------------- Mutant | -10/Materials Mutant | -10/Subcaves Commander-Mutant | -7/Recycling Commander-Mutant | -7/Scraptown Scavenger-Mutant | -5/Factory Scavenger-Mutant | -5/Waste Scavenger-Mutant | -5/Factory Gladiator | -5/Upper Caves Mutant | -5/Upper Caves Commander-Mutant | -5/Warlord Mutant | -4/Proximity Caves Scavenger-Mutant | -4/Factory Scavenger-Mutant | -4/Waste Mutant | -4/Factory Resources | -11 -10 -10 -7 -7 -5 -5 -5 -5 -5 -5 -4 -4 -4 -4 ----------- Run | Yrd Mat Sub Rec Scr Fac Was Fac Upp Upp War Pro Fac Was Fac Matter Collected 5070 | 200 80 962 378 101 1367 . 86 227 76 265 172 260 233 663 Remotely . | . . . . . . . . . . . . . . . Salvage Created 8357 | . 261 690 1121 . 1465 . . 311 360 785 502 495 141 2226 Parts 379 | . 21 46 39 . 70 . . 2 3 30 32 23 4 109 Haulers Intercepted 3 | . . . . . 1 . . . . . . . . 2 Recyclers Shooed 5 | . . . 5 . . . . . . . . . . . Parts Field Recycled . | . . . . . . . . . . . . . . . Retrieved Matter . | . . . . . . . . . . . . . . . Parts Self-Destructed 41 | . . 11 . . . . . 8 2 . 20 . . . Prevented 8 | . . . . . . . . . 1 . 7 . . . Kills | -11 -10 -10 -7 -7 -5 -5 -5 -5 -5 -5 -4 -4 -4 -4 ------- Run | Yrd Mat Sub Rec Scr Fac Was Fac Upp Upp War Pro Fac Was Fac Combat Hostiles Destroyed 125 | . 6 23 8 . 17 . . . 5 14 15 6 . 31 Melee 58 | . . . . . 17 . . . 5 1 5 6 . 24 Guns 16 | . 6 8 2 . . . . . . . . . . . Cannons 17 | . . 13 4 . . . . . . . . . . . AOE 27 | . . . 2 . . . . . . 9 10 . . 6 Classes Destroyed 26 | . 5 3 4 . 6 . . 1 1 5 . . . 1 Worker 4 | . 1 . . . . . . . . . . . . 3 Builder 4 | . . . 1 . . . . . . . . 1 . 2 Tunneler 1 | . 1 . . . . . . . . . . . . . Hauler 3 | . . . . . 1 . . . . . . . . 2 Recycler 9 | . . . 6 . 2 . . . . . . . . 1 Minesweeper 1 | . . . . . . . . . 1 . . . . . Mechanic 1 | . . . . . 1 . . . . . . . . . Operator 1 | . . . . . 1 . . . . . . . . . Turret 2 | . . 2 . . . . . . . . . . . . Watcher 6 | . 3 . . . 2 . . . . . . . . 1 Swarmer 29 | . 5 4 . . 3 . . . . 2 13 . . 2 Cutter 2 | . . . . . 2 . . . . . . . . . Saboteur 1 | . . . . . . . . . . 1 . . . . Grunt 32 | . 1 2 1 . 5 . . . 4 3 1 1 . 14 Brawler 2 | . . . . . 1 . . . . 1 . . . . Duelist 4 | . . . . . . . . . . . . 1 . 3 Protector 1 | . . . . . . . . . . 1 . . . . Sentry 12 | . . 1 3 . 1 . . . 1 . 1 2 . 3 Demolisher 3 | . . . . . 2 . . . . 1 . . . . Specialist 2 | . . . . . . . . . . 1 . 1 . . Hunter 8 | . . . 1 . . . . . . . . 1 . 6 Programmer 12 | . . . 3 . 5 . . . . 1 . . . 3 Striker 1 | . . . . . . . . . . 1 . . . . Executioner 2 | . . . . . . . . . . 2 . . . . Subdweller 16 | . . 16 . . . . . . . . . . . . Scrapoid 1 | . . . . . . . . . . . . . . 1 Packrat 2 | . . . . . . . . 2 . . . . . . Butcher 1 | . . . . . . . . 1 . . . . . . Martyr 2 | . . . . . . . . . . . . . 2 . Best Kill Streak 10 | . 3 6 3 . 3 . . . 2 8 5 1 . 10 Combat Bots Only 8 | . 3 4 2 . 3 . . . 2 8 5 1 . 6 Max Kills in Single Turn 3 | . 1 1 2 . 1 . . 1 1 3 3 1 1 3 Gunslinging . | . . . . . . . . . . . . . . . Exploded 3 | . . . 1 . . . . . . 3 3 . . 2 Melee 1 | . . . . . 1 . . . 1 1 1 1 . 1 Uniques/NPCs Destroyed . | . . . . . . . . . . . . . . . Combat | -11 -10 -10 -7 -7 -5 -5 -5 -5 -5 -5 -4 -4 -4 -4 -------- Run | Yrd Mat Sub Rec Scr Fac Was Fac Upp Upp War Pro Fac Was Fac Hostile Shots Fired 1020 | . 42 139 112 . 196 . 14 1 44 31 68 63 . 310 Missed 403 | . 14 57 47 . 78 . 9 . 13 10 20 27 . 128 Damage Taken 12257 | . 248 1680 352 . 2359 . 111 12 643 804 848 1182 25 3993 Core 1868 | . 55 132 35 . 268 . . . 41 137 39 64 . 1097 Absorbed by Shields 842 | . . . 158 . 416 . . . . . . . . 268 Regen/Repaired (Parts) 1348 | . . . . . . . 128 . . 168 . 64 335 653 Core Remaining (%) 54 | 100 . . . 11 . . . . . . 51 . . . Volleys Fired 351 | . 23 134 93 6 28 . . . . 21 12 9 11 14 Largest 2 | . 2 2 2 2 1 . . . . 1 1 1 2 1 Hottest 160 | . 90 119 160 40 85 . . . . 105 39 105 140 105 Shots Fired 492 | . 46 219 113 12 25 . . . . 21 12 10 20 14 Gun 181 | . 46 68 59 . 6 . . . . . . . . 2 Cannon 246 | . . 151 33 . 19 . . . . 6 4 10 20 3 Launcher 43 | . . . 11 . . . . . . 15 8 . . 9 Special 22 | . . . 10 12 . . . . . . . . . . Kinetic 171 | . . 156 15 . . . . . . . . . . . Thermal 210 | . 26 25 77 12 25 . . . . 6 4 10 20 5 Explosive 9 | . . . . . . . . . . . . . . 9 Electromagnetic 92 | . 20 38 11 . . . . . . 15 8 . . . Robot Hit Streak 21 | . 6 21 14 . 5 . . . . 6 1 4 10 3 Robot Miss Streak 5 | . 4 2 3 . 1 . . . . 1 . 1 1 5 Penetration Max . | . . . . . . . . . . . . . . . Secondary Targets 3 | . 2 1 . . . . . . . . . . . . Max Gunslinging Chain 1 | . 1 1 . . . . . . . . . . . . Shots Hit Robots 549 | . 23 141 77 . 67 . 7 6 33 23 21 39 21 91 Core Hits 255 | . 11 40 31 . 28 . . 1 10 34 22 12 5 61 Critical Kills 2 | . . 1 . . . . . . . . . . . 1 Critical Parts Destroyed 1 | . . 1 . . . . . . . . . . . . Critical Strikes 23 | . . 6 7 . 1 . . 2 . . . 4 . 3 Burn 6 | . . 1 5 . . . . . . . . . . . Meltdown 2 | . . 1 . . . . . . . . . . . 1 Destroy 1 | . . 1 . . . . . . . . . . . . Blast 5 | . . 3 2 . . . . . . . . . . . Sever 1 | . . . . . 1 . . . . . . . . . Melee Attacks 383 | . . . . . 116 . 14 8 45 20 25 46 5 104 Impact . | . . . . . . . . . . . . . . . Slashing 368 | . . . . . 116 . 14 8 45 5 25 46 5 104 Piercing . | . . . . . . . . . . . . . . . Sneak Attacks 51 | . . . . . 10 . 2 4 1 15 . 6 5 8 Combat Hostiles 4 | . . . . . 1 . . . . . . 1 . 2 Follow-up Attacks 10 | . . . . . 3 . 1 1 1 . 1 . . 3 Damage Inflicted 22780 | . 380 2825 1661 . 3057 . 402 420 1335 1518 1332 1760 1079 7011 Guns 1874 | . 349 715 707 . 103 . . . . . . . . . Cannons 3525 | . . 2110 673 . . . . . . . . 161 534 47 Explosions 4561 | . 31 . 281 . . . . . . 1482 546 . . 2221 Melee 12763 | . . . . . 2954 . 402 420 1335 36 786 1599 545 4686 Ramming 57 | . . . . . . . . . . . . . . 57 Kinetic 2493 | . . 2212 281 . . . . . . . . . . . Thermal 2945 | . 180 291 1099 . 103 . . . . 344 186 161 534 47 Explosive 2221 | . . . . . . . . . . . . . . 2221 Electromagnetic 2301 | . 200 322 281 . . . . . . 1138 360 . . . Impact . | . . . . . . . . . . . . . . . Slashing 12763 | . . . . . 2954 . 402 420 1335 36 786 1599 545 4686 Piercing . | . . . . . . . . . . . . . . . Highest Corruption 25 | . . . 1 . 18 25 25 25 25 25 15 15 15 18 Average Corruption 14 | . . . 1 . 13 22 25 25 25 6 6 3 15 15 Corruption Purged 1 | . . . 1 . . . . . . . . . . . Corruption Blocked . | . . . . . . . . . . . . . . . Effects 267 | . . . 6 . 42 7 21 39 22 3 26 8 18 75 Message Errors 57 | . . . 1 . 2 2 6 10 5 . 6 3 3 19 Matter Fused 59 | . . . 2 . 11 1 4 7 4 . 7 2 7 14 Heat Flow Errors 23 | . . . . . 5 . . 3 1 2 3 1 2 6 Energy Discharges 30 | . . . . . 5 . 2 5 6 . 2 . 1 9 Parts Rejected 3 | . . . . . 1 . . . . . . . . 2 Parts Fused 4 | . . . . . . . . . 1 . 1 1 1 . Data Loss (minor) 40 | . . . 3 . 3 . 4 11 4 1 4 . 2 8 Data Loss (major) 13 | . . . . . 2 . 1 2 . . 3 . 1 4 Misfires 4 | . . . . . . . . . . . . 1 1 2 Alerts 4 | . . . . . 1 . . . 1 . . . . 2 Misdirections 25 | . . . . . 9 4 4 1 . . . . . 7 Weapon Failures 5 | . . . . . 3 . . . . . . . . 2 Overload Shots 1 | . . . . . . . . . . 1 . . . . Overflow Damage 960 | . . . 65 . 184 . . 208 45 . 22 153 44 239 Projectiles 61 | . . . 61 . . . . . . . . . . . Explosions 83 | . . . 4 . . . . . . . 5 . . 74 Melee 816 | . . . . . 184 . . 208 45 . 17 153 44 165 Knockbacks 7 | . . 6 1 . . . . . . . . . . . Impact . | . . . . . . . . . . . . . . . Kinetic 7 | . . 6 1 . . . . . . . . . . . Secondary . | . . . . . . . . . . . . . . . Self-Inflicted Damage 95 | . . . 2 . . . . . . . 67 . . 26 Shots 5 | . . . 1 . . . . . . . 4 . . . Rammed 16 | . . . 2 . . . . . . . . . . 14 Targets Rammed 16 | . . . 2 . . . . . . . . . . 14 Kicked . | . . . . . . . . . . . . . . . Crushed . | . . . . . . . . . . . . . . . Highest Temperature 541 | . 180 18 541 . 323 . . 262 267 193 207 245 197 250 Average Temperature 85 | . 43 9 97 . 75 . . 121 118 21 80 130 48 74 Received Heat Transfer 1561 | . 6 375 21 . 267 . 18 . 270 39 90 39 37 399 Effects 12 | . . . 8 . 1 . . . . . 1 2 . . Shutdowns 1 | . . . 1 . . . . . . . . . . . Energy Bleed 4 | . . . 3 . . . . . . . . 1 . . Interference 2 | . . . . . . . . . . . 1 1 . . Damage (minor) 1 | . . . . . 1 . . . . . . . . . Damage (major) 4 | . . . 4 . . . . . . . . . . . Siege Activations . | . . . . . . . . . . . . . . . Robots Corrupted 6 | . 1 1 . . . . . . . 4 . . . . Combat Hostiles 5 | . . 1 . . . . . . . 4 . . . . Parts Fried 20 | . 4 3 3 . . . . . . 8 2 . . . Impact Corruptions . | . . . . . . . . . . . . . . . Robots Melted 2 | . . 1 . . . . . . . . . . . 1 Combat Hostiles 1 | . . 1 . . . . . . . . . . . . Parts Melted 16 | . 2 3 2 . . . . . . 1 . . 4 4 Heat Transferred 5595 | . 373 666 2835 . 185 . . . . 378 200 250 683 25 Parts Sabotaged 8 | . . . . . . . . . . . . . . 8 Parts Stolen . | . . . . . . . . . . . . . . . Parts Stripped . | . . . . . . . . . . . . . . . Power Chain Reactions 14 | . 1 . 2 . . . . . . 8 2 1 . . Alert | -11 -10 -10 -7 -7 -5 -5 -5 -5 -5 -5 -4 -4 -4 -4 ------- Run | Yrd Mat Sub Rec Scr Fac Was Fac Upp Upp War Pro Fac Was Fac Peak Influence 2309 | . 292 . 155 . 1343 485 435 . . . . 940 349 2309 Initial 470 | . . . 108 . . 470 339 . . . . . 329 104 Average 389 | . 137 . 76 . 271 483 373 . . . . 395 320 1279 Maximum Alert Level 5 | . 1 . . . 4 2 2 . . . . 3 1 5 Low Security (%) 59 | 100 66 . 100 . 58 . . . . . . 44 11 13 Level 1 15 | . 33 . . . 20 . 76 . . . . 8 88 2 Level 2 6 | . . . . . 12 100 23 . . . . 14 . 3 Level 3 8 | . . . . . 2 . . . . . . 33 . 22 Level 4 5 | . . . . . 5 . . . . . . . . 23 Level 5 2 | . . . . . . . . . . . . . . 15 High Security 3 | . . . . . . . . . . . . . . 17 Max Security . | . . . . . . . . . . . . . . . Squads Dispatched 59 | . 1 . . . 15 . 1 . . . . 15 . 27 Investigation 15 | . . . . . 3 . . . . . . 7 . 5 Extermination 9 | . . . . . 3 . 1 . . . . 3 . 2 Reinforcement 15 | . 1 . . . 6 . . . . . . 3 . 5 Assault 14 | . . . . . 1 . . . . . . 1 . 12 Garrison 6 | . . . . . 2 . . . . . . 1 . 3 Intercept . | . . . . . . . . . . . . . . . Searches Triggered 1 | . . . . . . . 1 . . . . . . . Construction Impeded 3 | . . . . . 2 . . . . . . . . 1 Haulers Reinforced 1 | . . . . . 1 . . . . . . . . . Active Scanning Responses . | . . . . . . . . . . . . . . . Cargo Convoy Interrupts . | . . . . . . . . . . . . . . . Stealth | -11 -10 -10 -7 -7 -5 -5 -5 -5 -5 -5 -4 -4 -4 -4 --------- Run | Yrd Mat Sub Rec Scr Fac Was Fac Upp Upp War Pro Fac Was Fac Distress Signals 11 | . 1 . . . 5 . . . . . . 2 . 3 Communications Jammed 173 | . . . . . . . . . . 76 . 30 . 67 Distress Signals 171 | . . . . . . . . . . 76 . 29 . 66 Times Spotted 336 | . 10 25 10 . 62 6 7 4 5 55 17 31 5 99 Peak Tracking Total 22 | . 5 6 2 . 15 6 4 4 4 19 5 4 2 22 Tactical Retreats 25 | . . 2 . . 6 . 1 . . 2 2 . . 12 Traps | -11 -10 -10 -7 -7 -5 -5 -5 -5 -5 -5 -4 -4 -4 -4 ------- Run | Yrd Mat Sub Rec Scr Fac Was Fac Upp Upp War Pro Fac Was Fac Traps Triggered 10 | . . 1 . . 6 . . . . 1 . 1 . 1 Indirectly 1 | . . . . . . . . . . 1 . . . . Trap Hack Attempts . | . . . . . . . . . . . . . . . Triggered . | . . . . . . . . . . . . . . . Disarmed . | . . . . . . . . . . . . . . . Reprogrammed . | . . . . . . . . . . . . . . . Reused . | . . . . . . . . . . . . . . . Traps Extracted . | . . . . . . . . . . . . . . . Installed . | . . . . . . . . . . . . . . . Triggered 14 | . . . . . . . . . 2 12 . . . . Most Traps Carried 2 | . . 1 1 1 . . . . 2 2 . . . . Machines | -11 -10 -10 -7 -7 -5 -5 -5 -5 -5 -5 -4 -4 -4 -4 ---------- Run | Yrd Mat Sub Rec Scr Fac Was Fac Upp Upp War Pro Fac Was Fac Machines Disabled 40 | . . 2 4 . 7 . 1 . 1 1 . 6 . 18 Max in Single Turn 3 | . . 1 1 . 1 . 1 . 1 1 . . . 3 Garrison Access 3 | . . . . . 1 . . . . . . 1 . 1 Machines Repaired . | . . . . . . . . . . . . . . . Machines Dismantled . | . . . . . . . . . . . . . . . Machines Sabotaged . | . . . . . . . . . . . . . . . Overloaded Fab Kills 4 | . . . . . . . . . . . . 4 . . Hacking | -11 -10 -10 -7 -7 -5 -5 -5 -5 -5 -5 -4 -4 -4 -4 --------- Run | Yrd Mat Sub Rec Scr Fac Was Fac Upp Upp War Pro Fac Was Fac Machines Accessed 60 | . . 1 8 5 14 . 8 . . 4 . 8 . 12 Terminals 18 | . . . 1 . 7 . 6 . . . . 1 . 3 Fabricators 5 | . . . . . 2 . . . . . . 1 . 2 Repair Stations 2 | . . . . . . . 1 . . . . 1 . . Recycling Units 15 | . . . 7 . 1 . . . . . . 3 . 4 Scanalyzers 1 | . . . . . . . . . . . . . . 1 Garrison Access 9 | . . . . . 4 . 1 . . . . 2 . 2 Total Hacks 146 | . . 4 20 18 31 . 11 . . 11 . 19 . 32 Successful 73 | . . 4 10 18 9 . 4 . . 11 . 7 . 10 Failed 73 | . . . 10 . 22 . 7 . . . . 12 . 22 Catastrophic 18 | . . . 3 . 6 . 2 . . . . 4 . 3 Database Lockouts . | . . . . . . . . . . . . . . . Manual 33 | . . . 8 . 4 . . . . 1 . 8 . 12 Terminals 36 | . . . 2 . 17 . 7 . . . . 2 . 8 Fabricators 14 | . . . . . 5 . . . . . . 3 . 6 Repair Stations 7 | . . . . . . . 3 . . . . 4 . . Recycling Units 35 | . . . 18 . 2 . . . . . . 6 . 9 Scanalyzers 3 | . . . . . . . . . . . . . . 3 Garrison Access 18 | . . . . . 7 . 1 . . . . 4 . 6 Terminal Hacks 40 | . . 4 . 18 5 . 2 . . 11 . . . . Record 18 | . . 4 . 12 . . . . . 2 . . . . Robot Analysis 4 | . . . . 4 . . . . . . . . . . Prototype ID Bank 8 | . . . . . . . . . . 8 . . . . Open Door 2 | . . . . 1 . . . . . 1 . . . . Branch Access Points 1 | . . . . . . . 1 . . . . . . . Emergency Access Points 1 | . . . . . 1 . . . . . . . . . Terminal Index 1 | . . . . . 1 . . . . . . . . . Scanalyzer Index 1 | . . . . . 1 . . . . . . . . . Alert Level 1 | . . . . . . . 1 . . . . . . . Zone Layout 2 | . . . . . 2 . . . . . . . . . Derelict Proto ID Bank 1 | . . . . 1 . . . . . . . . . . Fabricator Hacks 4 | . . . . . 1 . . . . . . 1 . 2 Network Status 4 | . . . . . 1 . . . . . . 1 . 2 Repair Station Hacks 4 | . . . . . . . 2 . . . . 2 . . Scan Component 2 | . . . . . . . 1 . . . . 1 . . Repair 2 | . . . . . . . 1 . . . . 1 . . Recycling Unit Hacks 7 | . . . 6 . . . . . . . . . . 1 Retrieve Components 7 | . . . 6 . . . . . . . . . . 1 Scanalyzer 1 | . . . . . . . . . . . . . . 1 Insert Component 1 | . . . . . . . . . . . . . . 1 Garrison Access Hacks 2 | . . . . . 1 . . . . . . . . 1 Seal Access 2 | . . . . . 1 . . . . . . . . 1 Unauthorized Hacks 15 | . . . 4 . 2 . . . . . . 4 . 5 Terminals 1 | . . . . . . . . . . . . . . 1 Botnet 1 | . . . . . . . . . . . . . . 1 Fabricators 2 | . . . . . 1 . . . . . . 1 . . Haulers 1 | . . . . . 1 . . . . . . . . . Overload 1 | . . . . . . . . . . . . 1 . . Repair Stations 8 | . . . . . 1 . . . . . . 3 . 4 Recycling Units 4 | . . . 4 . . . . . . . . . . . Tunnel 4 | . . . 4 . . . . . . . . . . . Scrapoids 8 | . . . . . 1 . . . . . . 3 . 4 Scanalyzers . | . . . . . . . . . . . . . . . Garrison Access . | . . . . . . . . . . . . . . . Data Cores Recovered 2 | . . . . . 1 . . . . . . . . 1 Used . | . . . . . . . . . . . . . . . Hacking Detections 38 | . . . 4 . 12 . 6 . . . . 5 . 11 Full Trace Events 10 | . . . 4 . 2 . . . . . . 3 . 1 Feedback Events 2 | . . . 1 . . . . . . . . 1 . . Corruption 1 | . . . 1 . . . . . . . . . . . Hackware Fried 1 | . . . . . . . . . . . . 1 . . Feedback Blocked . | . . . . . . . . . . . . . . . Robot Schematics Acquired . | . . . . . . . . . . . . . . . Robots Built . | . . . . . . . . . . . . . . . Authchips . | . . . . . . . . . . . . . . . Time . | . . . . . . . . . . . . . . . Total Robot Build Rating . | . . . . . . . . . . . . . . . Part Schematics Acquired . | . . . . . . . . . . . . . . . Parts Built . | . . . . . . . . . . . . . . . Authchips . | . . . . . . . . . . . . . . . Time . | . . . . . . . . . . . . . . . Total Part Build Rating . | . . . . . . . . . . . . . . . Parts Repaired 2 | . . . . . . . 1 . . . . 1 . . Time 90 | . . . . . . . 68 . . . . 22 . . Parts Recycled . | . . . . . . . . . . . . . . . Recycled Matter . | . . . . . . . . . . . . . . . Retrieved Matter . | . . . . . . . . . . . . . . . Retrieved Components 22 | . . . 20 . . . . . . . . . . 2 Parts Scanalyzed 1 | . . . . . . . . . . . . . . 1 Part Schematics Acquired . | . . . . . . . . . . . . . . . Parts Damaged 1 | . . . . . . . . . . . . . . 1 Bothacking | -11 -10 -10 -7 -7 -5 -5 -5 -5 -5 -5 -4 -4 -4 -4 ------------ Run | Yrd Mat Sub Rec Scr Fac Was Fac Upp Upp War Pro Fac Was Fac Used RIF Installer . | . . . . . . . . . . . . . . . Robots Hacked 2 | . . . . . . . . . . 2 . . . . Non-combat . | . . . . . . . . . . . . . . . Combat 2 | . . . . . . . . . . 2 . . . . Robot Hacks Applied 2 | . . . . . . . . . . 2 . . . . parse_system 2 | . . . . . . . . . . 2 . . . . Relay Couplers Released 6 | . . . . . . . . . . . . 2 . 4 Machine Destruction 6 | . . . . . . . . . . . . 2 . 4 Fabnet Peak Effective % . | . . . . . . . . . . . . . . . Robots Rewired 25 | . . . 20 . . . . . . 5 . . . . Allies Hacked 2 | . . . . . . . . . . . . . . 2 Hacks Repelled . | . . . . . . . . . . . . . . . Allies | -11 -10 -10 -7 -7 -5 -5 -5 -5 -5 -5 -4 -4 -4 -4 -------- Run | Yrd Mat Sub Rec Scr Fac Was Fac Upp Upp War Pro Fac Was Fac Total Allies 89 | . . . 20 . 10 . . . . 5 . 15 19 20 Largest Group 25 | . . . 20 19 15 . . . . 5 . 9 22 25 Highest-Rated Group 957 | . . . 373 370 328 . . . . 229 . 429 821 957 Highest-Rated Ally 50 | . . . 40 40 50 . . . . 49 . 50 50 50 Total Orders 38 | . . . 16 7 4 . . . . 3 . 3 3 2 STAY 12 | . . . 3 1 2 . . . . 2 . 2 1 1 FOLLOW 15 | . . . 7 1 2 . . . . 1 . 1 2 1 DROP 2 | . . . . 2 . . . . . . . . . . PICKUP 9 | . . . 6 3 . . . . . . . . . . Ally Attacks 825 | . . . 13 . 199 . . . . 46 . 177 63 327 Total Damage 19563 | . . . 164 . 4362 . . . . 2000 . 3921 1477 7639 Kills 119 | . . . 2 . 31 . . . . 12 . 22 7 45 Allies Corrupted 4 | . . . . . 3 . . . . . . . . 1 Allies Melted 1 | . . . . . . . . . . . . . . 1 Intel | -11 -10 -10 -7 -7 -5 -5 -5 -5 -5 -5 -4 -4 -4 -4 ------- Run | Yrd Mat Sub Rec Scr Fac Was Fac Upp Upp War Pro Fac Was Fac Robot Analysis Total 4 | . . . . 4 . . . . . . . . . . Derelict Logs Recovered 9 | . . 2 . 2 . . . 2 1 . 2 . . . Drone Launches . | . . . . . . . . . . . . . . . Drone Recoveries . | . . . . . . . . . . . . . . . Exploration | -11 -10 -10 -7 -7 -5 -5 -5 -5 -5 -5 -4 -4 -4 -4 ------------- Run | Yrd Mat Sub Rec Scr Fac Was Fac Upp Upp War Pro Fac Was Fac Turns Passed 38105 | 5 735 21152 3240 4362 1595 44 398 714 531 1276 815 1192 452 1594 Spaces Moved 14290 | 5 198 4087 821 1984 1698 103 665 564 371 912 593 793 248 1248 Core 2236 | . . 1779 70 82 1 . . . . . . . . 304 Treads 4536 | . 144 2289 677 1426 . . . . . . . . . . Legs 4240 | 5 54 . . . . . . 320 371 912 593 793 248 944 Wheels 93 | . . 19 74 . . . . . . . . . . . Hover . | . . . . . . . . . . . . . . . Flight 3185 | . . . . 476 1697 103 665 244 . . . . . . Fastest Speed 37 | 120 120 130 120 37 37 37 37 39 120 113 110 110 110 50 Average Speed 226 | 120 207 473 287 200 52 37 39 94 120 116 110 110 110 95 Slowest Speed 900 | 120 240 900 850 240 500 37 125 120 120 120 113 110 110 120 Overloaded Moves . | . . . . . . . . . . . . . . . Propulsion Burnouts . | . . . . . . . . . . . . . . . Robots Hopped 12 | . . . . . 7 2 3 . . . . . . . Cave-ins Triggered 3 | . . . . . 1 . . . . 1 . 1 . . Exploration Rate (%) 61 | 2 47 98 97 81 47 74 20 67 56 88 83 22 89 52 Regions Visited 14 Branch Regions 7 Pre-discovered Areas 7 | . . 1 4 . . . . . . . 2 . . . Known Exits Taken 3 | . . . . . . . 1 1 . . 1 . . . Unknown Exits Taken 7 | 1 1 1 1 1 . . . . 1 1 . . . . Scrap Searched 17 | . . 6 . 7 . . . 2 1 . 1 . . . Spaces Dug 78 | . . 1 14 . 32 . 3 2 . 6 5 7 2 6 Terrain Destroyed 205 | . 6 5 29 . 39 . 3 2 . 27 12 10 3 69 Melee 38 | . . . . . 20 . 3 2 . 2 1 5 . 5 Projectile 52 | . . 5 9 . 19 . . . . 5 4 5 3 2 AOE 115 | . 6 . 20 . . . . . . 20 7 . . 62 Terrain Rammed . | . . . . . . . . . . . . . . . Walls Destroyed . | . . . . . . . . . . . . . . . Machines Disabled . | . . . . . . . . . . . . . . . Actions | -11 -10 -10 -7 -7 -5 -5 -5 -5 -5 -5 -4 -4 -4 -4 --------- Run | Yrd Mat Sub Rec Scr Fac Was Fac Upp Upp War Pro Fac Was Fac Total 19183 | 4 473 5662 1589 2339 2200 107 781 741 437 1096 718 1068 404 1564 Wait 3433 | . 236 1354 529 285 243 . 83 147 15 101 74 154 115 97 Move 14255 | 4 197 4086 820 1983 1684 99 658 563 370 911 592 793 247 1248 Hop 11 | . . . . . 7 1 3 . . . . . . . Pick Up 130 | . 6 18 15 25 9 2 5 6 3 6 1 17 3 14 Fast Attach 105 | . 1 10 4 16 28 . 7 6 1 7 3 10 3 9 Attach 59 | . . 6 5 3 8 . 2 4 3 3 . 12 . 13 Detach 35 | . . 2 3 3 3 . 1 2 . 3 . 8 4 6 Swap 91 | . 9 8 12 3 5 1 . . . 10 9 7 9 18 Drop 163 | . 1 27 11 15 24 4 9 5 1 14 3 12 7 30 Fire 351 | . 23 134 93 6 28 . . . . 21 12 9 11 14 Melee 371 | . . . . . 111 . 13 7 44 20 24 46 5 101 Ram 14 | . . . . . . . . . . . . . . 14 Kick . | . . . . . . . . . . . . . . . Crush 2 | . . . 2 . . . . . . . . . . . Escape Stasis 49 | . . . . . 49 . . . . . . . . . Rewire 95 | . . . 95 . . . . . . . . . . . Trap . | . . . . . . . . . . . . . . . Miscellaneous 19 | . . 17 . . 1 . . 1 . . . . . . Route ------- -11/Scrapyard -10/Materials (discovered 3 exits: [*Mat] / [*Min] / *Sub) -10/Subcaves (discovered 3 exits: [*Mat x2] / *Rec) -7/Recycling (discovered 2 exits: *Fac / *Scr) -7/Scraptown -5/Factory (discovered 3 exits: *Fac x3) -5/Waste -5/Factory (discovered 2 exits: *Upp x2) -5/Upper Caves -5/Upper Caves (discovered 2 exits: *Fac / *War) -5/Warlord -4/Proximity Caves -4/Factory (discovered 2 exits: *Res x2) -4/Waste -4/Factory (discovered 2 exits: *Res x2) History --------- Turn | Location | Event 1 | -11/Scrapyard | Discovered new exit (range 0) 6 | -11/Scrapyard | Entered Materials 48 | -10/Materials | Discovered new exit (range 15) 331 | -10/Materials | Build established: Mutant 350 | -10/Materials | Discovered new exit (range 16) 690 | -10/Materials | Discovered new exit (range 4) 741 | -10/Materials | Entered Subcaves 769 | -10/Subcaves | Learned Materials security intel 1020 | -10/Subcaves | Discovered new exit (range 7) 1085 | -10/Subcaves | Core integrity fell below 50% 1335 | -10/Subcaves | Learned 2 Materials zone layouts 1372 | -10/Subcaves | Disturbed a concealed Subdweller 1613 | -10/Subcaves | Visited Clippyterm 1617 | -10/Subcaves | Learned Factory fabricator intel 1739 | -10/Subcaves | Discovered new exit (range 8) 1790 | -10/Subcaves | Shifting Twisted Machinery released Sub. Power Source 1796 | -10/Subcaves | Shifting Twisted Machinery released Battle Rifle 1849 | -10/Subcaves | Learned location of Zion (-7) 1849 | -10/Subcaves | Met a Zionite searching for "candidates" 1858 | -10/Subcaves | Build established: Derelict-Mutant 2025 | -10/Subcaves | Shifting Twisted Machinery released Sub. Beam Cannon 2253 | -10/Subcaves | Shifting Twisted Machinery released Sub. Laser 2396 | -10/Subcaves | A swath of the cavern ceiling suddenly collapsed 2556 | -10/Subcaves | Ambushed by Subdwellers from Twisted Machinery 2978 | -10/Subcaves | Build established: Mutant 5012 | -10/Subcaves | Visited 4L-MR0's lab 5050 | -10/Subcaves | Build established: Subdweller-Mutant 5521 | -10/Subcaves | Ambushed by Subdweller buried in earth 6662 | -10/Subcaves | Discovered new exit (range 16) 7377 | -10/Subcaves | Build established: Mutant 19811 | -10/Subcaves | Found Prototype Flight Unit 21893 | -10/Subcaves | Entered Recycling 22864 | -7/Recycling | Build established: Commander-Mutant 23253 | -7/Recycling | Core integrity fell below 20% 23931 | -7/Recycling | Discovered new exit (range 5) 25023 | -7/Recycling | Scanned before Scraplab entrance 25073 | -7/Recycling | Entered Scraplab 25092 | -7/Recycling | Discovered new exit (range 2) 25133 | -7/Recycling | Entered Scraptown 25133 | -7/Scraptown | Accompanied by 19 allies 25361 | -7/Scraptown | Visited UFD Registry 25390 | -7/Scraptown | Registered with UFD as "Carbonchip" 25465 | -7/Scraptown | Visited A0-MCA Data Center 25633 | -7/Scraptown | Visited Abandonware Association 25669 | -7/Scraptown | Visited Research Penetration Think Tank 25734 | -7/Scraptown | Visited Sword Containment 26020 | -7/Scraptown | Visited Assassins FH 26080 | -7/Scraptown | Visited Cyclists 26097 | -7/Scraptown | Entered Cyclist Reading Room 26205 | -7/Scraptown | Heard Great Nut preacher, LISTEN AND RECITE! 26210 | -7/Scraptown | Visited Bundlers 26733 | -7/Scraptown | Scanned Subdweller tech in exchange for log data 26743 | -7/Scraptown | Learned Factory security intel 26745 | -7/Scraptown | Learned Factory emergency access door positions 26800 | -7/Scraptown | Visited TADAMA 26831 | -7/Scraptown | Visited Awakened 26939 | -7/Scraptown | Visited Comm Corps 27135 | -7/Scraptown | Visited Science Guys 27402 | -7/Scraptown | Visited Derelict Rescue Squad 27418 | -7/Scraptown | Found DRS Beacon 27493 | -7/Scraptown | Delivered Scrap Shield to a Scientist 27623 | -7/Scraptown | Visited Scrap Suit Storage 27656 | -7/Scraptown | Visited Analyses Database 27740 | -7/Scraptown | Released all parts (6) 28390 | -7/Scraptown | Given an A+ rating by A0-MCA 28397 | -7/Scraptown | Found A0-MCA's Component Scanner 28413 | -7/Scraptown | Released all parts (7) 28652 | -7/Scraptown | Visited Scrapoid Pod Storage 29173 | -7/Scraptown | Found Scrapoid Pod 29340 | -7/Scraptown | Visited LU-1G1's Boring Crew 29448 | -7/Scraptown | Discovered new exit (range 5) 29495 | -7/Scraptown | Entered Factory 29495 | -5/Factory | Accompanied by 19 allies 29495 | -5/Factory | Evolved 10 slots: Power x1, Propulsion x4, Utility x5 29498 | -5/Factory | Loaded intel: 6 fabricator locations 29503 | -5/Factory | Identified Flightbrick 29504 | -5/Factory | Attached Flightbrick, gained temporary slots: Utility x3 29528 | -5/Factory | Lost 4 allies 29558 | -5/Factory | Spotted B-75 Beast 29563 | -5/Factory | Allies destroyed B-75 Beast 29822 | -5/Factory | Garrison activated, responded to threat 29962 | -5/Factory | Lost 4 allies 30234 | -5/Factory | Build established: Scavenger-Mutant 30291 | -5/Factory | Lost 4 allies 30457 | -5/Factory | Crushed by falling debris 30461 | -5/Factory | System corruption reached 10% 30546 | -5/Factory | Scrapoid Pod released 05F05-D (x5) 30737 | -5/Factory | Garrison activated, responded to threat 30790 | -5/Factory | Discovered new exit (range 10) 30793 | -5/Factory | Identified exit to Factory 30824 | -5/Factory | Lost 5 allies 30995 | -5/Factory | First assault squad dispatched 31000 | -5/Factory | Scrapoids reinforcements arrived? 31043 | -5/Factory | Discovered exit to Factory (range 12) 31086 | -5/Factory | Discovered exit to Factory (range 16) 31090 | -5/Factory | Manually triggered Chute Trap 31090 | -5/Factory | Sucked down chute 31090 | -5/Factory | Entered Waste 31093 | -5/Waste | Spotted C-40 Crusher 31093 | -5/Waste | Spotted C-40 Crusher 31102 | -5/Waste | Spotted C-40 Crusher 31102 | -5/Waste | Spotted C-40 Crusher 31102 | -5/Waste | Spotted C-40 Crusher 31105 | -5/Waste | EMP discharged 31105 | -5/Waste | Spotted C-40 Crusher 31130 | -5/Waste | Discovered new exit (range 10) 31133 | -5/Waste | Identified exit to Factory 31134 | -5/Waste | Entered Factory 31224 | -5/Factory | Repaired Impulse Thruster Array 31434 | -5/Factory | Search patrols dispatched 31478 | -5/Factory | Identified exit to Upper Caves 31532 | -5/Factory | Entered Upper Caves 31533 | -5/Upper Caves | Activated DRS Beacon 31534 | -5/Upper Caves | UFD Scientist delivered a prototype 31535 | -5/Upper Caves | Found Prototype Protection 31535 | -5/Upper Caves | Identified Enh. Scrap Shield 31689 | -5/Upper Caves | Build established: Gladiator 31919 | -5/Upper Caves | Encountered a Warlord checkpoint 31928 | -5/Upper Caves | Identified exit to Upper Caves 32246 | -5/Upper Caves | Entered another Upper Caves area 32367 | -5/Upper Caves | Discovered exit to Factory (range 9) 32455 | -5/Upper Caves | Build established: Mutant 32526 | -5/Upper Caves | Attracted the attention of an 0b10 checkpoint 32561 | -5/Upper Caves | Lost 3 parts (1p2u) 32577 | -5/Upper Caves | Learned Factory security intel 32595 | -5/Upper Caves | Found Alien Artifact 32758 | -5/Upper Caves | Discovered new exit (range 16) 32777 | -5/Upper Caves | Entered Warlord 32818 | -5/Warlord | System corruption cleaned by Quarantine Array 32880 | -5/Warlord | Build established: Infiltrator-Mutant 33083 | -5/Warlord | Received a Watcher feed algorithm from an ecstatic Tinkerer 33428 | -5/Warlord | Rebuked by Warlord 33440 | -5/Warlord | Build established: Commander-Mutant 33453 | -5/Warlord | Warlord's base attacked by MAIN.C 33455 | -5/Warlord | Found Prototype Reactor 33455 | -5/Warlord | Identified Vortex Chain Reactor 33470 | -5/Warlord | Found Spectral Analyzer 33668 | -5/Warlord | Found Prototype Energy Cannon 33668 | -5/Warlord | Identified Vortex Driver 33674 | -5/Warlord | Found Prototype Energy Gun 33674 | -5/Warlord | Identified Vortex Shotgun 33679 | -5/Warlord | Found Vortex Driver 33803 | -5/Warlord | Warlord forces counterattacked 33822 | -5/Warlord | Spotted Striker 33830 | -5/Warlord | Crushed by falling debris 33847 | -5/Warlord | Destroyed Striker 33865 | -5/Warlord | Spotted Striker 33869 | -5/Warlord | P-80 Master assimilated allied 14-EF0(l) 33874 | -5/Warlord | P-80 Master assimilated allied 1W-9LJ(g) 33879 | -5/Warlord | Allies destroyed Striker 33916 | -5/Warlord | Destroyed 8 combat bots 33924 | -5/Warlord | Lost 16 allies 33936 | -5/Warlord | Discovered new exit (range 12) 33972 | -5/Warlord | Spotted Executioner 33972 | -5/Warlord | Spotted Executioner 33993 | -5/Warlord | Destroyed Executioner 33994 | -5/Warlord | Destroyed Executioner 34022 | -5/Warlord | Lost 16 allies 34053 | -5/Warlord | Spotted Executioner 34053 | -5/Warlord | Spotted Executioner 34053 | -5/Warlord | Entered Proximity Caves 34187 | -4/Proximity Caves | Build established: Mutant 34198 | -4/Proximity Caves | Learned location of Testing (-3) 34464 | -4/Proximity Caves | Spotted B-86 Titan 34580 | -4/Proximity Caves | Attracted the attention of an 0b10 outpost 34842 | -4/Proximity Caves | Discovered exit to Factory (range 14) 34868 | -4/Proximity Caves | Entered Factory 34868 | -4/Factory | Evolved 2 slots: Utility x2 34963 | -4/Factory | Discovered new exit (range 6) 35104 | -4/Factory | Scrapoid reinforcements arrived 35215 | -4/Factory | Repaired Com. HERF Cannon 35434 | -4/Factory | Build established: Scavenger-Mutant 35465 | -4/Factory | Scrapoids reinforcements arrived? 35475 | -4/Factory | Discovered new exit (range 16) 35513 | -4/Factory | Identified exit to Research 35522 | -4/Factory | Lost 3 allies 35588 | -4/Factory | Adv. Hacking Suite fried by hacking feedback 35661 | -4/Factory | Garrison activated, responded to threat 35693 | -4/Factory | Lost 3 allies 36019 | -4/Factory | Crushed by falling debris 36019 | -4/Factory | System corruption reached 10% 36032 | -4/Factory | Found Quantum Capacitor 36034 | -4/Factory | Found Quantum Capacitor 36047 | -4/Factory | Scrapoids reinforcements arrived? 36050 | -4/Factory | Lost 4 parts (4u) 36060 | -4/Factory | Sucked down chute 36060 | -4/Factory | Entered Waste 36082 | -4/Waste | Spotted C-40 Crusher 36100 | -4/Waste | Spotted C-40 Crusher 36100 | -4/Waste | Spotted C-40 Crusher 36100 | -4/Waste | Allies destroyed C-40 Crusher 36110 | -4/Waste | 4 allies followed down the chute 36111 | -4/Waste | Found Broken Adv. Force Booster 36114 | -4/Waste | Spotted C-40 Crusher 36123 | -4/Waste | Allies destroyed C-40 Crusher 36129 | -4/Waste | Allies destroyed C-40 Crusher 36136 | -4/Waste | Spotted C-40 Crusher 36141 | -4/Waste | Allies destroyed C-40 Crusher 36146 | -4/Waste | Spotted C-40 Crusher 36161 | -4/Waste | Allies destroyed C-40 Crusher 36169 | -4/Waste | Allies destroyed C-40 Crusher 36199 | -4/Waste | Discovered new exit (range 23) 36220 | -4/Waste | Warlord forces began an assault 36229 | -4/Waste | Found Prototype Launcher 36229 | -4/Waste | Identified Hellfire Missile Launcher 36512 | -4/Waste | Entered Factory 36512 | -4/Factory | Accompanied by 20 allies 36627 | -4/Factory | Scrapoid reinforcements arrived 36751 | -4/Factory | Found Launcher Loader 36763 | -4/Factory | Garrison activated, responded to threat 36891 | -4/Factory | Lost 15 allies 36953 | -4/Factory | Scrapoids reinforcements arrived? 37002 | -4/Factory | Discovered exit to Research (range 14) 37009 | -4/Factory | Lost 4 allies 37092 | -4/Factory | Lost 3 allies 37135 | -4/Factory | Build established: Mutant 37181 | -4/Factory | Scrapoids reinforcements arrived? 37262 | -4/Factory | First assault squad dispatched 37529 | -4/Factory | Spotted B-86 Titan 37607 | -4/Factory | Scrapoid reinforcements arrived 37631 | -4/Factory | Discovered exit to Research (range 6) 37701 | -4/Factory | Lost 4 allies 37742 | -4/Factory | Build established: Scavenger-Mutant 37820 | -4/Factory | High security lockdown imminent 37872 | -4/Factory | Lost 4 parts (1p1n2u) 37900 | -4/Factory | High security lockdown engaged 37928 | -4/Factory | Lost 3 parts (2n1w) 37938 | -4/Factory | Core integrity fell below 50% 38069 | -4/Factory | Build established: Mutant 38085 | -4/Factory | Core integrity fell below 20% 38106 | -4/Factory | Destroyed by S-27 Virus with Autogun Last Messages --------------- 38073_ Spectral Analyzer temporarily disabled. 38074_ C-30 ARC bursts open, deploying its payload. 38074_ G-73 Enforcer unfolds itself. 38074_ B-60 Warrior unfolds itself. 38074_ G-67 Veteran unfolds itself. 38074_ Adv. Melee Analysis Suite destroyed. 38074_ Slug penetrates Wall. 38074_ Slammed into Y-64 Sentinel. 38075_ Acquired 93 matter. 38075_ Slammed into G-73 Enforcer. 38077_ Critical hit (Burn: +37). 38078_ Slammed into I-47 Archangel. 38079_ Slammed into P-70 Sage. 38084_ Destabilizing: Core damaged (-34). 38084_ Adv. Hacking Suite destroyed. 38085_ Acquired 3 matter. 38085_ Slammed into P-70 Sage. 38091_ >> Machine Analyzer network decryption results: 38091_ Terminal x1 38102_ ULP1NS/PVU&CZJXSJ#I8KY9 Map ----- +----------------------------------------------------+ | ?????????????????????????# #?????????????????? | | ?????????????????????????# #?????????????????? | | ?????????????????????????# #?????????????????? | | ?????????????????????????# #??????#??????????? | | ??????????????????#??????# #??????# ?????""??? | | ??????????????????# ###### ######## ""#?? | | ??????????????????# # """" ""#?? | | ??????????????##### # """" T#?? | | ?????????????? # """" ""#?? | | ??????????????????# # """" ""#?? | | ??????????????????# # ""??? | | ??????????????"""?# ###+##### # [?????? | | ????????????"""""?# ???# ## ###+######## | | ????????????"""""???????# ## | | ????????????????????????#ss" "## | | ????????????????????????# " ""## | | ????????????????????????# " ""## | | ????????????""T""???????# " ""## ##### | | ????????????"""""???????# " ""###########+###???# | | ????????????????????????# " T"#?????????????????# | | ????????????????????????# " ""#???????"""""""???# | | ????????????????????????#! " ""#???????"""""""???# | | ????????????????????????# " ""#???????"""""""???# | | ????????????????????????# ""#???????"""""""???# | | ????????????????????????# "#?????????????????# | | ????????????????????????#@ #????????""""""???# | | ????????????????????????########???????"""""""???# | | ???????????????????????????????????????"""""""???# | | ???????????????????????????????????????""""""????# | | ?????????????????????????????????????????????????# | | ?????????????????????????????????????????????????# | | ?????????????????????????????????????????????????# | | ?????????????????????????????????????????????????# | | ?????????????????????????????????????????????????# | | ?????????????????????????????????????????????????# | | ???????????????????????????????????????????????### | | ???????????????????????????????????????????????# | | ???????????????????????????????????????????????# | | ???????????????????????????????????????????????# | | ???????????????????????????????????????????????# | | ???????????????????????????????????????????????### | | | | | | | | | | | | | | | | | | | +----------------------------------------------------+ Best States ------------- Heat Dissipation 87 Energy Generation 55 Energy Capacity 700 Matter Stores 300 Matter Capacity 300 Sight Range 24 Robot Scan Range 16 Terrain Scan Range 16 Terrain Scan Density 10 Jamming Range 16 Armor Coverage 825 Melee Speed Boost 40 Evasion (%) 72 Melee Accuracy 8 Recoil Reduction 2 Matter Filtering 30 Force Boost 40 Salvage Targeting 4 Offensive Hacking 14 Authchip Count 2 Item Schematics ----------------- None Robot Schematics ------------------ None Fabricated ------------ Nothing Alien Tech Used ----------------- None Achievements -------------- None Challenges ------------ None Game ------ Seed WardroneTransportCharger Manual? 0 Play Time 03:15:54 Cumulative 328.2 hours Start 2024.10.08 @ 17:28:10 End 2024.10.10 @ 17:47:50 Sessions 7 Manual Loads 0 Difficulty Rogue Special Mode None Game No. 161 Rogue 161 Adventurer 0 Explorer 0 Win Type - Total 9 Types 5/1/3/0/0/0/0/0/0 Lore% 83 Gallery% 87 Achievement% 73 Wizard Run 0 Options --------- Layout 0 ASCII 0 Keyboard 0 Movement Mouse Keybinds 0 Fullscreen 2 Font 12/Smallcaps Map View 83x54 Zoom Use 0% Tactical HUD 1 Map Filters NONE Filters NONE Steam 1 RUN: 029042d9-8c9a-44ab-8073-8ad642708657